[Event "African Games Rapid Open 2019"]
[Site "Casablanca"]
[Date "2019.08.26"]
[Round "3.20"]
[White "Gole, Habtamu Ashenafi"]
[Black "Hassan, Abderrahmane"]
[Result "0-1"]
[ECO "C03"]
[WhiteElo "2046"]
[BlackElo "1786"]
[Annotator "NA"]
[PlyCount "60"]
[EventDate "2019.08.26"]
[EventType "team-tourn"]
[EventCountry "MAR"]
[SourceTitle "playchess.com"]
[Source "ChessBase"]
[SourceQuality "1"]
[TimeControl "900+10"]

1. e4 {[%emt 0:00:00]} e6 {[%emt 0:00:00]} 2. d4 {[%emt 0:00:00]} d5 {[%emt 0:00:00]} 3. Nd2 {[%emt 0:00:00]} Nc6 {[%emt 0:00:00]} 4. c3 {[%emt 0:00:00]} e5 {[%emt 0:00:00]} 5. exd5 {[%emt 0:00:03]} Qxd5 {[%emt 0:00:00]} 6. dxe5 {[%emt 0:00:50]} Nxe5 {[%emt 0:00:08]} 7. Qa4+ {[%emt 0:01:07]} Bd7 {[%emt 0:00:21]} 8. Qe4 {[%emt 0:00:13]} Bc6 {[%emt 0:02:09]} 9. Qxd5 {[%emt 0:00:03]} Bxd5 {[%emt 0:00:01]} 10. f4 {[%emt 0:01:09]} Ng4 {[%emt 0:00:29]} 11. Ndf3 {[%emt 0:00:41]} Bc5 {[%emt 0:00:39]} 12. Nd4 {[%emt 0:00:24]} O-O-O {[%emt 0:00:16]} 13. h3 {[%emt 0:00:03]} Re8+ {[%emt 0:00:07]} 14. Nge2 {[%emt 0:00:59]} Ne3 {[%emt 0:00:23]} 15. Bxe3 {[%emt 0:00:02]} Rxe3 {[%emt 0:00:07]} 16. Kd2 {[%emt 0:00:04]} Re8 {[%emt 0:01:01]} 17. b4 {[%emt 0:00:56]} Bb6 {[%emt 0:00:47]} 18. a4 {[%emt 0:00:02]} a5 {[%emt 0:00:03]} 19. b5 {[%emt 0:01:07]} Nf6 {[%emt 0:00:03]} 20. Rg1 {[%emt 0:00:29]} Rd8 {[%emt 0:00:52]} 21. g3 {[%emt 0:00:06]} Rhe8 {[%emt 0:00:06]} 22. Bg2 {[%emt 0:00:10]} Bc4 {[%emt 0:00:25]} 23. Bf3 {[%emt 0:01:24]} Ne4+ {[%emt 0:00:59]} 24. Kc2 {[%emt 0:00:15]} Bxe2 {[%emt 0:00:20]} 25. Bxe2 {[%emt 0:00:02]} Bxd4 {[%emt 0:00:12]} 26. Bg4+ {[%emt 0:00:11]} Kb8 {[%emt 0:00:09]} 27. cxd4 {[%emt 0:00:03]} Rxd4 {[%emt 0:00:15]} 28. Rg2 {[%emt 0:00:47]} Nc5 {[%emt 0:00:24]} 29. Rd2 {[%emt 0:00:32]} Rxd2+ {[%emt 0:00:02]} 30. Kxd2 {[%emt 0:00:02]} Nb3+ {[%emt 0:00:01]} 0-1

[Event "African Games Rapid Open 2019"]
[Site "Casablanca"]
[Date "2019.08.26"]
[Round "3.21"]
[White "Naipal, Hoolan"]
[Black "Sang, Ricky"]
[Result "0-1"]
[ECO "B91"]
[WhiteElo "1785"]
[BlackElo "1971"]
[Annotator "NA"]
[PlyCount "134"]
[EventDate "2019.08.26"]
[EventType "team-tourn"]
[EventCountry "MAR"]
[SourceTitle "playchess.com"]
[Source "ChessBase"]
[SourceQuality "1"]
[TimeControl "900+10"]

1. e4 {[%emt 0:00:00]} c5 {[%emt 0:00:00]} 2. Nf3 {[%emt 0:00:00]} d6 {[%emt 0:00:00]} 3. d4 {[%emt 0:00:00]} cxd4 {[%emt 0:00:00]} 4. Nxd4 {[%emt 0:00:00]} Nf6 {[%emt 0:00:00]} 5. Nc3 {[%emt 0:00:00]} a6 {[%emt 0:00:00]} 6. g3 {[%emt 0:00:00]} e5 {[%emt 0:00:16]} 7. Nde2 {[%emt 0:00:01]} Be7 {[%emt 0:00:23]} 8. Bg2 {[%emt 0:00:02]} O-O {[%emt 0:00:07]} 9. O-O {[%emt 0:00:02]} b5 {[%emt 0:01:17]} 10. Nd5 {[%emt 0:00:08]} Nxd5 {[%emt 0:00:09]} 11. Qxd5 {[%emt 0:00:02]} Ra7 {[%emt 0:00:10]} 12. a4 {[%emt 0:02:16]} Be6 {[%emt 0:00:54]} 13. Qd1 {[%emt 0:00:36]} b4 {[%emt 0:01:01]} 14. a5 {[%emt 0:00:48]} Nd7 {[%emt 0:01:07]} 15. Be3 {[%emt 0:01:34]} Ra8 {[%emt 0:01:39]} 16. c3 {[%emt 0:02:31]} Qb8 {[%emt 0:01:06]} 17. Qd2 {[%emt 0:03:02]} Nc5 {[%emt 0:00:30]} 18. Bxc5 {[%emt 0:00:23]} dxc5 {[%emt 0:00:02]} 19. cxb4 {[%emt 0:00:09]} Qxb4 {[%emt 0:00:37]} 20. Qxb4 {[%emt 0:00:04]} cxb4 {[%emt 0:00:02]} 21. Rfc1 {[%emt 0:00:25]} Rac8 {[%emt 0:00:19]} 22. h4 {[%emt 0:00:20]} Rfd8 {[%emt 0:00:08]} 23. Rxc8 {[%emt 0:01:02]} Rxc8 {[%emt 0:00:01]} 24. Rc1 {[%emt 0:00:17]} Rxc1+ {[%emt 0:00:15]} 25. Nxc1 {[%emt 0:00:02]} Bd8 {[%emt 0:01:15]} 26. Nd3 {[%emt 0:00:03]} Bxa5 {[%emt 0:00:16]} 27. Nxe5 {[%emt 0:00:02]} Bc7 {[%emt 0:00:32]} 28. Nc6 {[%emt 0:00:17]} a5 {[%emt 0:01:06]} 29. f4 {[%emt 0:02:01]} Bc4 {[%emt 0:01:16]} 30. Ne7+ {[%emt 0:00:40]} Kf8 {[%emt 0:00:16]} 31. Nd5 {[%emt 0:00:03]} Bxd5 {[%emt 0:00:55]} 32. exd5 {[%emt 0:00:02]} a4 {[%emt 0:00:08]} 33. Bf1 {[%emt 0:00:26]} Bb6+ {[%emt 0:02:01]} 34. Kg2 {[%emt 0:00:01]} Bd4 {[%emt 0:00:02]} 35. Bb5 {[%emt 0:00:02]} a3 {[%emt 0:00:06]} 36. bxa3 {[%emt 0:00:01]} bxa3 {[%emt 0:00:01]} 37. Bc4 {[%emt 0:00:04]} f6 {[%emt 0:00:34]} 38. Kf3 {[%emt 0:00:02]} Ke7 {[%emt 0:00:07]} 39. Ke4 {[%emt 0:00:12]} Bf2 {[%emt 0:00:06]} 40. Kf3 {[%emt 0:00:02]} Be1 {[%emt 0:00:04]} 41. Ba2 {[%emt 0:00:22]} Kd6 {[%emt 0:00:03]} 42. h5 {[%emt 0:00:15]} Kc5 {[%emt 0:00:20]} 43. g4 {[%emt 0:00:24]} Kd4 {[%emt 0:00:24]} 44. d6 {[%emt 0:01:47]} Ba5 {[%emt 0:00:14]} 45. d7 {[%emt 0:00:02]} Kc5 {[%emt 0:00:43]} 46. f5 {[%emt 0:00:09]} Kd4 {[%emt 0:00:25]} 47. Be6 {[%emt 0:00:19]} h6 {[%emt 0:00:07]} 48. Ba2 {[%emt 0:00:02]} Kd3 {[%emt 0:00:07]} 49. Be6 {[%emt 0:00:07]} Bc7 {[%emt 0:00:06]} 50. Ba2 {[%emt 0:00:07]} Bd8 {[%emt 0:00:28]} 51. Be6 {[%emt 0:00:04]} Kc2 {[%emt 0:00:46]} 52. Ke4 {[%emt 0:00:18]} Kd2 {[%emt 0:00:11]} 53. Kf3 {[%emt 0:00:08]} Kc2 {[%emt 0:00:07]} 54. Ke4 {[%emt 0:00:02]} Kb2 {[%emt 0:00:17]} 55. Bc4 {[%emt 0:00:11]} a2 {[%emt 0:00:03]} 56. Bxa2 {[%emt 0:00:02]} Kxa2 {[%emt 0:00:02]} 57. Kd5 {[%emt 0:00:02]} Kb3 {[%emt 0:00:13]} 58. Ke6 {[%emt 0:00:01]} Kc4 {[%emt 0:00:04]} 59. Kf7 {[%emt 0:00:05]} Kd5 {[%emt 0:00:03]} 60. Ke8 {[%emt 0:01:19]} Ba5 {[%emt 0:00:03]} 61. d8=Q+ {[%emt 0:00:05]} Bxd8 {[%emt 0:00:01]} 62. Kxd8 {[%emt 0:00:01]} Ke5 {[%emt 0:00:03]} 63. Ke7 {[%emt 0:00:01]} Kf4 {[%emt 0:00:01]} 64. Kf7 {[%emt 0:00:01]} Kxg4 {[%emt 0:00:02]} 65. Kxg7 {[%emt 0:00:02]} Kg5 {[%emt 0:00:02]} 66. Kf7 {[%emt 0:00:49]} Kxf5 {[%emt 0:00:03]} 67. Kg7 {[%emt 0:00:04]} Ke5 0-1

[Event "African Games Rapid Open 2019"]
[Site "Casablanca"]
[Date "2019.08.26"]
[Round "3.23"]
[White "Marie, Patrick"]
[Black "Kouya, Tyeoulou Bernardin F"]
[Result "0-1"]
[ECO "B45"]
[WhiteElo "1921"]
[BlackElo "1770"]
[Annotator "NA"]
[PlyCount "90"]
[EventDate "2019.08.26"]
[EventType "team-tourn"]
[EventCountry "MAR"]
[SourceTitle "playchess.com"]
[Source "ChessBase"]
[SourceQuality "1"]
[TimeControl "900+10"]

1. e4 {[%emt 0:00:00]} c5 {[%emt 0:00:00]} 2. Nc3 {[%emt 0:00:00]} e6 {[%emt 0:00:00]} 3. Nf3 {[%emt 0:00:05]} Nc6 {[%emt 0:00:01]} 4. d4 {[%emt 0:00:02]} cxd4 {[%emt 0:00:02]} 5. Nxd4 {[%emt 0:00:02]} Nf6 {[%emt 0:00:12]} 6. Be3 {[%emt 0:00:52]} Be7 {[%emt 0:00:05]} 7. Be2 {[%emt 0:00:43]} O-O {[%emt 0:00:06]} 8. O-O {[%emt 0:00:02]} d6 {[%emt 0:00:12]} 9. Kh1 {[%emt 0:01:07]} a6 {[%emt 0:00:03]} 10. f4 {[%emt 0:00:24]} Qc7 {[%emt 0:00:05]} 11. Bf3 {[%emt 0:00:25]} Bd7 {[%emt 0:00:12]} 12. Nb3 {[%emt 0:04:03]} b5 {[%emt 0:00:24]} 13. a3 {[%emt 0:00:51]} Rac8 {[%emt 0:00:03]} 14. Qd2 {[%emt 0:00:26]} Rfd8 {[%emt 0:00:49]} 15. Qf2 {[%emt 0:00:02]} Qb8 {[%emt 0:00:43]} 16. Rad1 {[%emt 0:00:28]} Be8 {[%emt 0:00:18]} 17. g4 {[%emt 0:00:26]} b4 {[%emt 0:00:12]} 18. axb4 {[%emt 0:00:08]} Nxb4 {[%emt 0:00:03]} 19. Bb6 {[%emt 0:00:41]} Rd7 {[%emt 0:00:16]} 20. g5 {[%emt 0:00:00]} Rb7 {[%emt 0:00:36]} 21. gxf6 {[%emt 0:00:03]} Bxf6 {[%emt 0:00:24]} 22. Bd4 {[%emt 0:00:01]} e5 {[%emt 0:00:26]} 23. Be3 {[%emt 0:00:09]} g6 {[%emt 0:01:28]} 24. fxe5 {[%emt 0:00:46]} Bxe5 {[%emt 0:00:08]} 25. Bd4 {[%emt 0:00:07]} Bxd4 {[%emt 0:01:14]} 26. Rxd4 {[%emt 0:00:26]} Nxc2 {[%emt 0:01:39]} 27. Qxc2 {[%emt 0:01:45]} Rxb3 {[%emt 0:00:04]} 28. Rf2 {[%emt 0:01:21]} Qb6 {[%emt 0:01:32]} 29. Qd2 {[%emt 0:01:04]} Rc6 {[%emt 0:02:01]} 30. Nd5 {[%emt 0:00:26]} Qb7 {[%emt 0:00:57]} 31. Nf6+ {[%emt 0:00:59]} Kf8 {[%emt 0:00:10]} 32. e5 {[%emt 0:00:22]} dxe5 {[%emt 0:00:36]} 33. Nxe8 {[%emt 0:00:46]} exd4 {[%emt 0:00:33]} 34. Nf6 {[%emt 0:00:54]} Rxf3 {[%emt 0:00:50]} 35. Qh6+ {[%emt 0:00:31]} Ke7 {[%emt 0:00:08]} 36. Nd5+ {[%emt 0:00:07]} Kd6 {[%emt 0:01:32]} 37. Rxf3 {[%emt 0:00:15]} Kxd5 {[%emt 0:00:07]} 38. Qg5+ {[%emt 0:00:19]} f5 {[%emt 0:00:21]} 39. Qg2 {[%emt 0:00:01]} Kd6 {[%emt 0:00:21]} 40. Qg3+ {[%emt 0:00:13]} Kd7 {[%emt 0:00:09]} 41. Qe5 {[%emt 0:00:08]} Rc1+ {[%emt 0:00:32]} 42. Kg2 {[%emt 0:00:01]} Qxb2+ {[%emt 0:00:19]} 43. Rf2 {[%emt 0:00:06]} Qb7+ {[%emt 0:00:19]} 44. Kh3 {[%emt 0:00:06]} Rc3+ {[%emt 0:00:07]} 45. Kh4 {[%emt 0:00:06]} Qe4+ {[%emt 0:00:05]} 0-1

[Event "African Games Rapid Open 2019"]
[Site "Casablanca"]
[Date "2019.08.26"]
[Round "4.3"]
[White "Wanyama, Harold"]
[Black "Traore, Bakary"]
[Result "1-0"]
[ECO "E80"]
[WhiteElo "2293"]
[BlackElo "2189"]
[Annotator "NA"]
[PlyCount "73"]
[EventDate "2019.08.26"]
[EventType "team-tourn"]
[EventCountry "MAR"]
[SourceTitle "playchess.com"]
[Source "ChessBase"]
[SourceQuality "1"]
[TimeControl "900+10"]

1. c4 {[%emt 0:00:00]} Nf6 {[%emt 0:00:00]} 2. Nc3 {[%emt 0:00:00]} g6 {[%emt 0:00:00]} 3. e4 {[%emt 0:00:01]} d6 {[%emt 0:00:00]} 4. d4 {[%emt 0:00:12]} Bg7 {[%emt 0:00:00]} 5. f3 {[%emt 0:00:02]} c5 {[%emt 0:00:28]} 6. Be3 {[%emt 0:01:35]} cxd4 {[%emt 0:00:06]} 7. Bxd4 {[%emt 0:00:01]} Nc6 {[%emt 0:00:01]} 8. Be3 {[%emt 0:00:01]} O-O {[%emt 0:00:21]} 9. Nge2 {[%emt 0:00:05]} Ne5 {[%emt 0:00:29]} 10. Nd4 {[%emt 0:00:04]} a6 {[%emt 0:00:42]} 11. Qd2 {[%emt 0:00:05]} Qc7 {[%emt 0:00:01]} 12. b3 {[%emt 0:00:03]} Bd7 {[%emt 0:00:14]} 13. Rc1 {[%emt 0:00:02]} Nc6 {[%emt 0:00:19]} 14. Nd5 {[%emt 0:00:07]} Qd8 {[%emt 0:00:35]} 15. Nxc6 {[%emt 0:00:31]} bxc6 {[%emt 0:00:37]} 16. Bb6 {[%emt 0:02:54]} Qb8 {[%emt 0:00:27]} 17. Nxe7+ {[%emt 0:00:30]} Kh8 {[%emt 0:00:00]} 18. c5 {[%emt 0:00:01]} Re8 {[%emt 0:00:07]} 19. Qxd6 {[%emt 0:00:09]} Qb7 {[%emt 0:00:47]} 20. Rd1 {[%emt 0:00:20]} Nxe4 {[%emt 0:02:13]} 21. Qxd7 {[%emt 0:06:16]} Bc3+ {[%emt 0:00:05]} 22. Ke2 {[%emt 0:00:01]} Ng3+ {[%emt 0:00:03]} 23. Kf2 {[%emt 0:00:00]} Be1+ {[%emt 0:00:03]} 24. Kg1 {[%emt 0:00:22]} Qxd7 {[%emt 0:04:38]} 25. Rxd7 {[%emt 0:00:12]} Nxh1 {[%emt 0:00:04]} 26. Kxh1 {[%emt 0:00:02]} Bh4 {[%emt 0:00:05]} 27. Nxc6 {[%emt 0:00:21]} Re1 {[%emt 0:00:02]} 28. g3 {[%emt 0:00:20]} Rxf1+ {[%emt 0:00:29]} 29. Kg2 {[%emt 0:00:01]} Ra1 {[%emt 0:00:04]} 30. gxh4 {[%emt 0:00:03]} Rxa2+ {[%emt 0:00:01]} 31. Kg3 {[%emt 0:00:02]} Kg8 {[%emt 0:00:20]} 32. Nd4 {[%emt 0:00:10]} Re8 {[%emt 0:00:10]} 33. c6 {[%emt 0:00:18]} Ra1 {[%emt 0:00:14]} 34. c7 {[%emt 0:00:08]} Rc1 {[%emt 0:00:07]} 35. Rd8 {[%emt 0:00:04]} Kf8 {[%emt 0:00:02]} 36. Ba5 {[%emt 0:00:06]} f5 {[%emt 0:00:10]} 37. Ne6+ {[%emt 0:00:09]} 1-0

[Event "African Games Rapid Open 2019"]
[Site "Casablanca"]
[Date "2019.08.26"]
[Round "4.4"]
[White "Bellahcene, Bilel"]
[Black "Arab, Adlane"]
[Result "1-0"]
[ECO "B30"]
[WhiteElo "2550"]
[BlackElo "2485"]
[Annotator "ChessBase"]
[PlyCount "43"]
[EventDate "2019.08.26"]
[EventType "team-tourn"]
[EventCountry "MAR"]
[SourceTitle "playchess.com"]
[Source "ChessBase"]
[SourceQuality "1"]
[TimeControl "900+10"]

1. e4 {[%emt 0:00:00]} c5 {[%emt 0:00:00]} 2. Nf3 {[%emt 0:00:00]} Nc6 {[%emt 0:00:00]} 3. b4 {[%emt 0:00:00]} cxb4 {[%emt 0:00:00]} 4. d4 {[%emt 0:00:00]} d5 {[%emt 0:00:09]} 5. exd5 {[%emt 0:00:00]} Qxd5 {[%emt 0:00:03]} 6. c4 {[%emt 0:00:00]} bxc3 {[%emt 0:00:23]} 7. Nxc3 {[%emt 0:00:00]} Qa5 {[%emt 0:00:44]} 8. d5 {[%emt 0:00:01]} Qxc3+ {[%emt 0:00:28]} 9. Bd2 {[%emt 0:00:01]} Qa3 {[%emt 0:01:35]} 10. dxc6 {[%emt 0:00:04]} bxc6 {[%emt 0:00:01]} 11. Qc2 {[%emt 0:00:52]} Bd7 {[%emt 0:00:01]} 12. Ne5 {[%emt 0:00:52]} Nf6 {[%emt 0:00:39]} 13. Nxd7 {[%emt 0:00:16]} Nxd7 {[%emt 0:00:01]} 14. Qxc6 {[%emt 0:00:05]} Rd8 {[%emt 0:00:02]} 15. Bb5 {[%emt 0:02:06]} e6 {[%emt 0:00:17]} 16. O-O {[%emt 0:00:12]} Be7 {[%emt 0:00:26]} 17. Qb7 {[%emt 0:00:59]} a6 {[%emt 0:01:14]} 18. Bc6 {[%emt 0:01:47]} O-O {[%emt 0:01:04]} 19. Bxd7 {[%emt 0:00:01]} Qd6 {[%emt 0:00:02]} 20. Ba4 {[%emt 0:00:17]} Rb8 {[%emt 0:00:08]} 21. Qa7 {[%emt 0:00:05]} Bf6 {[%emt 0:00:04]} 22. Rad1 {[%emt 0:00:32]} 1-0

[Event "African Games Rapid Open 2019"]
[Site "Casablanca"]
[Date "2019.08.26"]
[Round "4.5"]
[White "Mesfin, Leykun"]
[Black "Hamdouchi, Hicham"]
[Result "0-1"]
[ECO "B32"]
[WhiteElo "2151"]
[BlackElo "2562"]
[Annotator "ChessBase"]
[PlyCount "102"]
[EventDate "2019.08.26"]
[EventType "team-tourn"]
[EventCountry "MAR"]
[SourceTitle "playchess.com"]
[Source "ChessBase"]
[SourceQuality "1"]
[TimeControl "900+10"]

1. e4 {[%emt 0:00:51]} c5 {[%emt 0:00:00]} 2. Nf3 {[%emt 0:00:07]} Nc6 {[%emt 0:00:00]} 3. d4 {[%emt 0:00:01]} cxd4 {[%emt 0:00:00]} 4. Nxd4 {[%emt 0:00:02]} Qb6 {[%emt 0:00:00]} 5. Nb3 {[%emt 0:00:28]} Nf6 {[%emt 0:00:00]} 6. Nc3 {[%emt 0:00:14]} e6 {[%emt 0:00:00]} 7. Be3 {[%emt 0:00:15]} Qc7 {[%emt 0:00:00]} 8. Be2 {[%emt 0:00:17]} Bb4 {[%emt 0:00:10]} 9. O-O {[%emt 0:02:03]} Bxc3 {[%emt 0:00:10]} 10. bxc3 {[%emt 0:00:02]} Nxe4 {[%emt 0:00:07]} 11. Bf3 {[%emt 0:00:12]} d5 {[%emt 0:00:57]} 12. Bxe4 {[%emt 0:00:23]} dxe4 {[%emt 0:00:02]} 13. Bc5 {[%emt 0:00:05]} b6 {[%emt 0:00:05]} 14. Bd6 {[%emt 0:00:45]} Qd7 {[%emt 0:00:02]} 15. Qd2 {[%emt 0:00:04]} Ne7 {[%emt 0:01:08]} 16. Rfd1 {[%emt 0:00:28]} Nf5 {[%emt 0:01:30]} 17. Qf4 {[%emt 0:02:12]} Nxd6 {[%emt 0:00:02]} 18. Rxd6 {[%emt 0:00:02]} Qe7 {[%emt 0:00:01]} 19. Rad1 {[%emt 0:00:04]} O-O {[%emt 0:00:18]} 20. Qxe4 {[%emt 0:00:04]} Bb7 {[%emt 0:00:02]} 21. Qe3 {[%emt 0:00:39]} Rad8 {[%emt 0:00:24]} 22. Rxd8 {[%emt 0:00:09]} Rxd8 {[%emt 0:00:01]} 23. Rxd8+ {[%emt 0:00:02]} Qxd8 {[%emt 0:00:01]} 24. Qd2 {[%emt 0:00:09]} Qxd2 {[%emt 0:02:39]} 25. Nxd2 {[%emt 0:00:02]} Kf8 {[%emt 0:00:01]} 26. f3 {[%emt 0:00:03]} Ke7 {[%emt 0:00:01]} 27. Kf2 {[%emt 0:00:01]} Kd6 {[%emt 0:00:01]} 28. Ke3 {[%emt 0:00:05]} Kc5 {[%emt 0:00:02]} 29. Kd3 {[%emt 0:00:17]} Ba6+ {[%emt 0:00:43]} 30. Ke3 {[%emt 0:01:11]} Bc4 {[%emt 0:00:40]} 31. a4 {[%emt 0:01:08]} Bd5 {[%emt 0:00:19]} 32. Kd3 {[%emt 0:00:31]} a5 {[%emt 0:00:12]} 33. Nb3+ {[%emt 0:00:44]} Kd6 {[%emt 0:00:02]} 34. c4 {[%emt 0:00:34]} Bc6 {[%emt 0:00:08]} 35. c5+ {[%emt 0:00:05]} Kc7 {[%emt 0:00:21]} 36. cxb6+ {[%emt 0:00:33]} Kxb6 {[%emt 0:00:01]} 37. Nd2 {[%emt 0:00:10]} Bxa4 {[%emt 0:00:08]} 38. Nc4+ {[%emt 0:00:20]} Ka6 {[%emt 0:00:01]} 39. Nd6 {[%emt 0:00:15]} f6 {[%emt 0:00:14]} 40. Ne4 {[%emt 0:00:28]} Kb6 {[%emt 0:00:25]} 41. c4 {[%emt 0:00:12]} Bc6 {[%emt 0:00:08]} 42. Nd2 {[%emt 0:00:35]} a4 {[%emt 0:00:25]} 43. Kc3 {[%emt 0:00:44]} Kc5 {[%emt 0:00:02]} 44. g3 {[%emt 0:00:52]} e5 {[%emt 0:00:11]} 45. f4 {[%emt 0:01:05]} Bg2 {[%emt 0:02:50]} 46. fxe5 {[%emt 0:00:12]} fxe5 {[%emt 0:00:01]} 47. Nb1 {[%emt 0:00:33]} e4 {[%emt 0:00:09]} 48. Na3 {[%emt 0:00:02]} Bf1 {[%emt 0:00:30]} 49. Nc2 {[%emt 0:00:52]} Bxc4 {[%emt 0:00:05]} 50. Ne3 {[%emt 0:00:57]} a3 {[%emt 0:00:38]} 51. Nxc4 {[%emt 0:01:01]} a2 {[%emt 0:00:02] Kd4+} 0-1

[Event "African Games Rapid Open 2019"]
[Site "Casablanca"]
[Date "2019.08.26"]
[Round "4.6"]
[White "Gohil, Mehul"]
[Black "Boudriga, Mohamed Ali"]
[Result "0-1"]
[ECO "A45"]
[WhiteElo "2076"]
[BlackElo "2325"]
[Annotator "NA"]
[PlyCount "78"]
[EventDate "2019.08.26"]
[EventType "team-tourn"]
[EventCountry "MAR"]
[SourceTitle "playchess.com"]
[Source "ChessBase"]
[SourceQuality "1"]
[TimeControl "900+10"]

1. d4 {[%emt 0:00:14]} Nf6 {[%emt 0:00:00]} 2. Bg5 {[%emt 0:00:05]} c5 {[%emt 0:00:22]} 3. d5 {[%emt 0:00:03]} Qb6 {[%emt 0:00:04]} 4. Nc3 {[%emt 0:00:06]} Qxb2 {[%emt 0:00:06]} 5. Bd2 {[%emt 0:00:03]} Qb6 {[%emt 0:00:02]} 6. e4 {[%emt 0:00:03]} d6 {[%emt 0:00:01]} 7. f4 {[%emt 0:00:15]} e5 {[%emt 0:00:04]} 8. dxe6 {[%emt 0:00:08]} Bxe6 {[%emt 0:00:20]} 9. Rb1 {[%emt 0:00:26]} Qc7 {[%emt 0:00:05]} 10. Nf3 {[%emt 0:01:09]} a6 {[%emt 0:00:24]} 11. a4 {[%emt 0:00:04]} Be7 {[%emt 0:00:04]} 12. Be2 {[%emt 0:00:30]} O-O {[%emt 0:00:03]} 13. O-O {[%emt 0:00:15]} Nc6 {[%emt 0:01:22]} 14. Ng5 {[%emt 0:01:54]} Bd7 {[%emt 0:00:30]} 15. Be3 {[%emt 0:03:14]} Nb4 {[%emt 0:03:17]} 16. Nf3 {[%emt 0:03:52]} Bc6 {[%emt 0:00:22]} 17. e5 {[%emt 0:00:30]} Ng4 {[%emt 0:00:06]} 18. Bc1 {[%emt 0:00:09]} dxe5 {[%emt 0:00:08]} 19. Ng5 {[%emt 0:01:38]} Nf6 {[%emt 0:02:24]} 20. Bf3 {[%emt 0:01:42]} h6 {[%emt 0:00:13]} 21. Nge4 {[%emt 0:00:09]} Rad8 {[%emt 0:00:31]} 22. Qe2 {[%emt 0:00:06]} exf4 {[%emt 0:00:10]} 23. Bb2 {[%emt 0:00:23]} Rfe8 {[%emt 0:00:05]} 24. Qc4 {[%emt 0:00:42]} Nxc2 {[%emt 0:00:44]} 25. Nd1 {[%emt 0:00:38]} Nd4 {[%emt 0:00:13]} 26. Nxf6+ {[%emt 0:00:16]} Bxf6 {[%emt 0:00:02]} 27. Bh5 {[%emt 0:00:06]} Bd5 {[%emt 0:00:09]} 28. Qd3 {[%emt 0:00:06]} g6 {[%emt 0:00:27]} 29. Bg4 {[%emt 0:00:07]} h5 {[%emt 0:00:03]} 30. Bh3 {[%emt 0:00:02]} c4 {[%emt 0:00:19]} 31. Qa3 {[%emt 0:00:09]} Re2 {[%emt 0:00:22]} 32. Nc3 {[%emt 0:00:08]} Re3 {[%emt 0:00:33]} 33. Qa1 {[%emt 0:00:11]} Bc6 {[%emt 0:00:08]} 34. Rf2 {[%emt 0:00:13]} Rxh3 {[%emt 0:00:30]} 35. gxh3 {[%emt 0:00:04]} Nf3+ {[%emt 0:00:21]} 36. Kf1 {[%emt 0:00:36]} Nd2+ {[%emt 0:00:07]} 37. Kg1 {[%emt 0:00:05]} Nxb1 {[%emt 0:00:24]} 38. Nxb1 {[%emt 0:00:09]} Rd1+ {[%emt 0:00:03]} 39. Rf1 {[%emt 0:00:03]} Qb6+ {[%emt 0:00:01]} 0-1

[Event "African Games Rapid Open 2019"]
[Site "Casablanca"]
[Date "2019.08.26"]
[Round "4.7"]
[White "Zaibi, Amir"]
[Black "Oatlhotse, Providence"]
[Result "1-0"]
[ECO "B90"]
[WhiteElo "2367"]
[BlackElo "2252"]
[Annotator "NA"]
[PlyCount "101"]
[EventDate "2019.08.26"]
[EventType "team-tourn"]
[EventCountry "MAR"]
[SourceTitle "playchess.com"]
[Source "ChessBase"]
[SourceQuality "1"]
[TimeControl "900+10"]

1. e4 {[%emt 0:00:00]} c5 {[%emt 0:00:00]} 2. Nf3 d6 {[%emt 0:00:00]} 3. d4 {[%emt 0:00:00]} cxd4 4. Nxd4 {[%emt 0:00:00]} Nf6 {[%emt 0:00:00]} 5. Nc3 {[%emt 0:00:00]} a6 {[%emt 0:00:00]} 6. Bc4 {[%emt 0:00:00]} e6 {[%emt 0:00:00]} 7. Bb3 {[%emt 0:00:02]} Nc6 {[%emt 0:00:16]} 8. Be3 {[%emt 0:00:07]} Bd7 {[%emt 0:00:05]} 9. Qe2 {[%emt 0:00:07]} Be7 {[%emt 0:00:16]} 10. O-O-O {[%emt 0:00:06]} Rc8 {[%emt 0:00:07]} 11. Kb1 {[%emt 0:01:27]} O-O {[%emt 0:00:34]} 12. Nxc6 {[%emt 0:01:01]} Rxc6 {[%emt 0:00:11]} 13. g4 {[%emt 0:00:27]} Rxc3 {[%emt 0:00:48]} 14. bxc3 {[%emt 0:00:01]} Nxe4 {[%emt 0:00:01]} 15. Bd4 {[%emt 0:00:10]} Bc6 {[%emt 0:00:17]} 16. f3 {[%emt 0:00:14]} Nf6 {[%emt 0:01:12]} 17. Rhe1 {[%emt 0:00:24]} Qc7 {[%emt 0:00:35]} 18. g5 {[%emt 0:01:18]} Nh5 {[%emt 0:00:35]} 19. Be3 {[%emt 0:01:59]} d5 {[%emt 0:02:59]} 20. Rd4 {[%emt 0:01:09]} Bb5 {[%emt 0:01:51]} 21. Qd2 {[%emt 0:01:04]} Rc8 {[%emt 0:00:09]} 22. Rh4 {[%emt 0:00:20]} g6 {[%emt 0:00:22]} 23. Bd4 {[%emt 0:01:17]} a5 {[%emt 0:01:24]} 24. a4 {[%emt 0:00:56]} Bc6 {[%emt 0:00:52]} 25. Rxh5 {[%emt 0:01:54]} gxh5 {[%emt 0:00:26]} 26. g6 {[%emt 0:00:01]} fxg6 {[%emt 0:00:58]} 27. Rxe6 {[%emt 0:00:02]} Bf8 {[%emt 0:02:45]} 28. Qg5 {[%emt 0:00:48]} Qd7 {[%emt 0:00:27]} 29. Re5 {[%emt 0:01:29]} Rd8 {[%emt 0:01:28]} 30. c4 {[%emt 0:00:23]} Re8 {[%emt 0:00:35]} 31. cxd5 {[%emt 0:00:21]} Bxa4 {[%emt 0:00:07]} 32. Qf6 {[%emt 0:01:00]} Rxe5 {[%emt 0:00:37]} 33. Qxe5 {[%emt 0:00:19]} Bxb3 {[%emt 0:00:07]} 34. Qh8+ {[%emt 0:00:03]} Kf7 {[%emt 0:00:01]} 35. Qxh7+ {[%emt 0:00:01]} Ke8 {[%emt 0:00:05]} 36. Qxg6+ {[%emt 0:00:08]} Qf7 {[%emt 0:00:15]} 37. Qe4+ {[%emt 0:00:16]} Kd7 {[%emt 0:00:31]} 38. cxb3 {[%emt 0:00:03]} Bd6 {[%emt 0:00:09]} 39. h3 {[%emt 0:00:17]} Qe7 {[%emt 0:00:13]} 40. Kc2 {[%emt 0:00:27]} Qf7 {[%emt 0:00:07]} 41. Kd3 {[%emt 0:00:08]} Qe7 {[%emt 0:00:12]} 42. Qxe7+ {[%emt 0:00:04]} Bxe7 {[%emt 0:00:09]} 43. Kc4 {[%emt 0:00:03]} Bb4 {[%emt 0:00:11]} 44. Be5 {[%emt 0:00:06]} Ke7 {[%emt 0:00:11]} 45. f4 {[%emt 0:00:01]} Kd7 {[%emt 0:00:04]} 46. f5 {[%emt 0:00:01]} Ke7 {[%emt 0:00:01]} 47. Kb5 {[%emt 0:00:09]} Kd7 {[%emt 0:00:13]} 48. Kb6 {[%emt 0:00:08]} Kc8 {[%emt 0:00:02]} 49. f6 {[%emt 0:00:04]} h4 {[%emt 0:00:26]} 50. f7 {[%emt 0:00:47]} a4 {[%emt 0:00:03]} 51. d6 {[%emt 0:00:18]} 1-0